[Event "WJCC U20 Girls 2019"]
[Site "New Delhi"]
[Date "2019.10.21"]
[Round "7.36"]
[White "Blazeka, Mihaela"]
[Black "Fretel, Liza"]
[Result "0-1"]
[ECO "B30"]
[WhiteElo "2109"]
[BlackElo "1877"]
[Annotator "NA"]
[PlyCount "76"]
[EventDate "2019.10.15"]
[EventType "swiss"]
[EventCountry "IND"]
[SourceTitle "playchess.com"]
[Source "ChessBase"]
[SourceQuality "1"]
[TimeControl "40/5400+30:1800+30"]

1. e4 {[%emt 0:00:00]} c5 {[%emt 0:00:00]} 2. Nf3 {[%emt 0:00:14]} Nc6 {[%emt 0:00:00]} 3. Bb5 {[%emt 0:00:12]} Nf6 {[%emt 0:00:00]} 4. e5 {[%emt 0:01:36]} Nd5 {[%emt 0:00:00]} 5. O-O {[%emt 0:01:07]} Nc7 {[%emt 0:00:40]} 6. Be2 {[%emt 0:04:32]} d6 {[%emt 0:04:09]} 7. exd6 {[%emt 0:01:06]} Qxd6 {[%emt 0:00:06]} 8. Nc3 {[%emt 0:00:45]} Bf5 {[%emt 0:03:41]} 9. d3 {[%emt 0:01:00]} O-O-O {[%emt 0:03:02]} 10. Nh4 {[%emt 0:02:15]} Bg6 {[%emt 0:03:17]} 11. g3 {[%emt 0:03:30]} Nd4 {[%emt 0:07:38]} 12. f4 {[%emt 0:03:25]} e6 {[%emt 0:03:51]} 13. Bf3 {[%emt 0:03:49]} c4 {[%emt 0:09:01]} 14. Nxg6 {[%emt 0:05:11]} hxg6 {[%emt 0:02:58]} 15. Kg2 {[%emt 0:09:46]} Nxf3 {[%emt 0:11:36]} 16. Rxf3 {[%emt 0:01:23]} Qc6 {[%emt 0:04:19]} 17. Be3 {[%emt 0:09:21]} Bb4 {[%emt 0:08:16]} 18. Ne4 {[%emt 0:03:37]} cxd3 {[%emt 0:01:14]} 19. cxd3 {[%emt 0:00:47]} Qb5 {[%emt 0:05:25]} 20. Bg1 {[%emt 0:04:55]} Rd5 {[%emt 0:00:31]} 21. a3 {[%emt 0:00:57]} Be7 {[%emt 0:01:18]} 22. Qc2 {[%emt 0:03:27]} Kb8 {[%emt 0:03:49]} 23. Rc1 {[%emt 0:02:49]} Rd7 {[%emt 0:00:05]} 24. Bd4 {[%emt 0:19:16]} f6 {[%emt 0:03:18]} 25. Bc5 {[%emt 0:00:19]} f5 {[%emt 0:05:40]} 26. Nd6 {[%emt 0:06:33]} Rxd6 {[%emt 0:01:36]} 27. Bxd6 {[%emt 0:04:31]} Bxd6 {[%emt 0:00:05]} 28. d4 {[%emt 0:03:19]} Qd5 {[%emt 0:01:07]} 29. Qd3 {[%emt 0:01:21]} Ne8 {[%emt 0:01:58]} 30. Kg1 {[%emt 0:01:03]} Nf6 {[%emt 0:00:32]} 31. Rf2 {[%emt 0:00:09]} Bc7 {[%emt 0:03:00]} 32. a4 {[%emt 0:01:40]} Bb6 {[%emt 0:00:34]} 33. Rc4 {[%emt 0:00:05]} Ne4 {[%emt 0:01:19]} 34. Rfc2 {[%emt 0:00:50]} a5 {[%emt 0:03:18]} 35. Rc1 {[%emt 0:00:49]} Nd6 {[%emt 0:00:37]} 36. Rc5 {[%emt 0:00:25]} Bxc5 {[%emt 0:00:38]} 37. Rxc5 {[%emt 0:00:06]} Qe4 {[%emt 0:03:08]} 38. Qc3 {[%emt 0:00:14]} Qb1+ {[%emt 0:00:26]} 0-1

[Event "WJCC U20 Girls 2019"]
[Site "New Delhi"]
[Date "2019.10.21"]
[Round "7.37"]
[White "Jayaweera, Sayuni Gihansa"]
[Black "Ulziikhishigjargal, Ochirkhuyag"]
[Result "1/2-1/2"]
[ECO "E17"]
[WhiteElo "1788"]
[BlackElo "2194"]
[Annotator "NA"]
[PlyCount "87"]
[EventDate "2019.10.15"]
[EventType "swiss"]
[EventCountry "IND"]
[SourceTitle "playchess.com"]
[Source "ChessBase"]
[SourceQuality "1"]
[TimeControl "40/5400+30:1800+30"]

1. d4 {[%emt 0:00:00]} Nf6 {[%emt 0:00:00]} 2. c4 {[%emt 0:00:00]} e6 {[%emt 0:00:00]} 3. Nf3 {[%emt 0:00:30]} b6 {[%emt 0:00:00]} 4. g3 {[%emt 0:00:09]} Bb7 {[%emt 0:00:00]} 5. Bg2 {[%emt 0:00:11]} Be7 {[%emt 0:00:04]} 6. O-O {[%emt 0:00:19]} O-O {[%emt 0:00:04]} 7. Re1 {[%emt 0:00:22]} d6 {[%emt 0:06:01]} 8. Nc3 {[%emt 0:07:36]} Ne4 {[%emt 0:03:17]} 9. Qc2 {[%emt 0:02:03]} Nxc3 {[%emt 0:10:18]} 10. Qxc3 {[%emt 0:00:19]} c5 {[%emt 0:01:28]} 11. Qc2 {[%emt 0:05:29]} Nc6 {[%emt 0:02:30]} 12. dxc5 {[%emt 0:00:35]} bxc5 {[%emt 0:00:55]} 13. Bd2 {[%emt 0:02:52]} Qb6 {[%emt 0:01:29]} 14. Bc3 {[%emt 0:05:13]} Rfd8 {[%emt 0:04:25]} 15. Red1 {[%emt 0:03:33]} Nb4 {[%emt 0:08:58]} 16. Qb1 {[%emt 0:03:33]} Rab8 {[%emt 0:03:08]} 17. a3 {[%emt 0:09:11]} Nc6 {[%emt 0:03:08]} 18. b4 {[%emt 0:01:22]} d5 {[%emt 0:07:23]} 19. cxd5 {[%emt 0:08:59]} exd5 {[%emt 0:01:23]} 20. bxc5 {[%emt 0:00:24]} Qxc5 {[%emt 0:00:19]} 21. Qd3 {[%emt 0:01:57]} Qb6 {[%emt 0:07:58]} 22. Rab1 {[%emt 0:03:10]} Qa6 {[%emt 0:00:11]} 23. Qxa6 {[%emt 0:06:03]} Bxa6 {[%emt 0:00:01]} 24. Nd4 {[%emt 0:01:23]} Rbc8 {[%emt 0:14:18]} 25. Nxc6 {[%emt 0:02:10]} Rxc6 {[%emt 0:00:02]} 26. Bb4 {[%emt 0:00:32]} Bxb4 {[%emt 0:03:54]} 27. Rxb4 {[%emt 0:00:09]} Bxe2 {[%emt 0:00:16]} 28. Bxd5 {[%emt 0:01:48]} Rcd6 {[%emt 0:03:21]} 29. Re1 {[%emt 0:02:10]} Bd3 {[%emt 0:00:05]} 30. Bb3 {[%emt 0:02:03]} Kf8 {[%emt 0:01:29]} 31. Rb7 {[%emt 0:00:29]} R6d7 {[%emt 0:00:08]} 32. Rxd7 {[%emt 0:00:56]} Rxd7 {[%emt 0:00:01]} 33. Ba4 {[%emt 0:00:10]} Rd8 {[%emt 0:02:17]} 34. f4 f5 {[%emt 0:00:20]} 35. Kf2 {[%emt 0:03:29]} Be4 {[%emt 0:00:38]} 36. Rd1 {[%emt 0:00:16]} Rb8 {[%emt 0:01:07]} 37. Rd2 {[%emt 0:00:46]} a5 38. Ke3 {[%emt 0:00:22]} g6 {[%emt 0:02:54]} 39. Rd7 {[%emt 0:01:16]} Rb2 {[%emt 0:00:22]} 40. Rd2 {[%emt 0:01:42]} Rb1 {[%emt 0:01:28]} 41. Rd1 {[%emt 0:35:28]} Rb2 {[%emt 0:30:48]} 42. Rd2 {[%emt 0:00:07]} Rb8 {[%emt 0:00:23]} 43. Rd7 {[%emt 0:00:22]} Rb1 {[%emt 0:00:56]} 44. Rc7 1/2-1/2

[Event "WJCC U20 Girls 2019"]
[Site "New Delhi"]
[Date "2019.10.21"]
[Round "7.38"]
[White "Kairbekova, Amina"]
[Black "Levitan, Ronit"]
[Result "1-0"]
[ECO "C54"]
[WhiteElo "2096"]
[BlackElo "1893"]
[Annotator "NA"]
[PlyCount "77"]
[EventDate "2019.10.15"]
[EventType "swiss"]
[EventCountry "IND"]
[SourceTitle "playchess.com"]
[Source "ChessBase"]
[SourceQuality "1"]
[TimeControl "40/5400+30:1800+30"]

1. e4 {[%emt 0:00:00]} e5 {[%emt 0:00:00]} 2. Nf3 {[%emt 0:00:00]} Nc6 {[%emt 0:00:04]} 3. Bc4 {[%emt 0:00:00]} Bc5 {[%emt 0:00:11]} 4. c3 {[%emt 0:00:00]} Nf6 {[%emt 0:00:08]} 5. d4 {[%emt 0:00:00]} exd4 {[%emt 0:00:20]} 6. e5 {[%emt 0:00:00]} d5 {[%emt 0:00:43]} 7. Be2 {[%emt 0:00:00]} Ne4 {[%emt 0:00:49]} 8. cxd4 {[%emt 0:00:03]} Bb6 {[%emt 0:01:21]} 9. O-O {[%emt 0:00:20]} O-O {[%emt 0:00:34]} 10. Nc3 {[%emt 0:00:05]} Be6 {[%emt 0:08:58]} 11. Be3 {[%emt 0:02:05]} f6 {[%emt 0:12:18]} 12. exf6 {[%emt 0:00:05]} Qxf6 {[%emt 0:00:20]} 13. Rc1 {[%emt 0:00:21]} Ne7 {[%emt 0:11:09]} 14. Bd3 {[%emt 0:15:52]} Nxc3 {[%emt 0:08:11]} 15. bxc3 {[%emt 0:00:08]} Bg4 {[%emt 0:00:18]} 16. Be2 {[%emt 0:01:11]} Rae8 {[%emt 0:01:41]} 17. Ne5 {[%emt 0:04:52]} Bxe2 {[%emt 0:04:28]} 18. Qxe2 {[%emt 0:00:06]} Qe6 {[%emt 0:01:16]} 19. f4 {[%emt 0:04:56]} Ng6 {[%emt 0:15:24]} 20. Kh1 {[%emt 0:20:51]} c6 {[%emt 0:08:20]} 21. Qc2 {[%emt 0:11:23]} Nxe5 {[%emt 0:06:27]} 22. fxe5 {[%emt 0:02:15]} Rxf1+ {[%emt 0:02:26]} 23. Rxf1 {[%emt 0:00:05]} Rc8 {[%emt 0:01:26]} 24. a4 {[%emt 0:07:12]} Rc7 {[%emt 0:07:47]} 25. Qe2 {[%emt 0:10:37]} Rf7 {[%emt 0:01:08]} 26. Rxf7 {[%emt 0:00:09]} Qxf7 {[%emt 0:00:05]} 27. Qg4 {[%emt 0:00:38]} Bd8 {[%emt 0:05:09]} 28. h3 {[%emt 0:02:32]} Qe7 {[%emt 0:01:38]} 29. Qc8 {[%emt 0:02:31]} a6 {[%emt 0:00:26]} 30. Bc1 {[%emt 0:03:31]} Kf7 {[%emt 0:00:59]} 31. Qf5+ {[%emt 0:04:31]} Kg8 {[%emt 0:00:06]} 32. Kh2 {[%emt 0:00:22]} g6 {[%emt 0:00:50]} 33. Qc8 {[%emt 0:00:25]} Kg7 {[%emt 0:00:37]} 34. Ba3 {[%emt 0:01:58]} Qxa3 {[%emt 0:00:33]} 35. Qxd8 {[%emt 0:00:06]} Qxc3 {[%emt 0:00:38]} 36. Qf6+ {[%emt 0:00:24]} Kh6 {[%emt 0:00:26]} 37. e6 {[%emt 0:00:08]} Qe3 {[%emt 0:00:34]} 38. e7 {[%emt 0:00:19]} Kh5 {[%emt 0:00:23]} 39. Qf3+ {[%emt 0:00:24]} 1-0

[Event "WJCC U20 Girls 2019"]
[Site "New Delhi"]
[Date "2019.10.21"]
[Round "7.40"]
[White "Cosme Contreras, Trilce"]
[Black "Figueroa Bernal, Julia Dennis"]
[Result "1/2-1/2"]
[ECO "E36"]
[WhiteElo "2027"]
[BlackElo "1777"]
[Annotator "NA RC"]
[PlyCount "158"]
[EventDate "2019.10.15"]
[EventType "swiss"]
[EventCountry "IND"]
[SourceTitle "playchess.com"]
[Source "ChessBase"]
[SourceQuality "1"]
[TimeControl "40/5400+30:1800+30"]

1. d4 {[%emt 0:02:44]} Nf6 {[%emt 0:00:00]} 2. c4 {[%emt 0:00:05]} e6 {[%emt 0:00:00]} 3. Nc3 {[%emt 0:00:18]} Bb4 {[%emt 0:00:05]} 4. Qc2 {[%emt 0:00:40]} d5 {[%emt 0:01:32]} 5. a3 {[%emt 0:03:15]} Bxc3+ {[%emt 0:00:10]} 6. Qxc3 {[%emt 0:00:30]} c5 {[%emt 0:04:02]} 7. cxd5 {[%emt 0:07:48]} cxd4 {[%emt 0:01:36]} 8. Qg3 {[%emt 0:06:21]} exd5 {[%emt 0:03:32]} 9. Qxg7 {[%emt 0:06:24]} Rg8 {[%emt 0:00:12]} 10. Qh6 {[%emt 0:00:04]} Rg6 {[%emt 0:00:27]} 11. Qf4 {[%emt 0:11:35]} Nc6 {[%emt 0:00:58]} 12. Nf3 {[%emt 0:02:17]} Rg4 {[%emt 0:07:54]} 13. Qd2 {[%emt 0:03:06]} Qb6 {[%emt 0:09:05]} 14. h3 {[%emt 0:09:50]} Rg6 {[%emt 0:00:34]} 15. g3 {[%emt 0:01:19]} Ne4 {[%emt 0:01:30]} 16. Qd1 {[%emt 0:00:21]} Be6 {[%emt 0:23:51]} 17. Bg2 {[%emt 0:05:31]} O-O-O {[%emt 0:06:36]} 18. b4 {[%emt 0:01:42]} Kb8 {[%emt 0:02:41]} 19. Bf4+ {[%emt 0:04:49]} Ka8 {[%emt 0:00:20]} 20. Ne5 {[%emt 0:00:52]} Nxe5 {[%emt 0:01:04]} 21. Bxe5 {[%emt 0:00:03]} d3 {[%emt 0:00:23]} 22. e3 {[%emt 0:05:40]} Qb5 {[%emt 0:06:10]} 23. O-O {[%emt 0:05:03]} Qd7 {[%emt 0:08:36]} 24. Qxd3 {[%emt 0:07:22]} Bxh3 {[%emt 0:00:19]} 25. Rfd1 {[%emt 0:01:23]} Bxg2 {[%emt 0:06:59]} 26. Kxg2 {[%emt 0:00:03]} Ng5 {[%emt 0:02:49]} 27. Rh1 {[%emt 0:04:47]} Qg4 {[%emt 0:00:53]} 28. Rh4 {[%emt 0:00:51]} Qf3+ {[%emt 0:00:07]} 29. Kf1 {[%emt 0:00:13]} Ne4 {[%emt 0:00:44]} 30. Qe2 {[%emt 0:00:15]} Rxg3 {[%emt 0:02:49]} 31. Qxf3 {[%emt 0:00:31]} Rxf3 {[%emt 0:00:05]} 32. Ra2 {[%emt 0:01:30]} Rf5 {[%emt 0:01:13]} 33. Bd4 {[%emt 0:02:49]} h5 {[%emt 0:00:20]} 34. Rc2 {[%emt 0:02:33]} Rg8 {[%emt 0:01:05]} 35. Rh3 {[%emt 0:00:51]} b6 {[%emt 0:02:45]} 36. f4 {[%emt 0:01:13]} Kb7 {[%emt 0:01:48]} 37. Rch2 {[%emt 0:01:49]} Rc8 {[%emt 0:00:17]} 38. Ke1 {[%emt 0:00:46]} Rc1+ {[%emt 0:01:19]} 39. Ke2 {[%emt 0:00:10]} Rc2+ {[%emt 0:02:16]} 40. Kd3 {[%emt 0:01:07]} Rf2 {[%emt 0:01:15]} 41. Bc3 {[%emt 0:30:42]} Rxh2 {[%emt 0:30:53]} 42. Rxh2 {[%emt 0:00:05]} Nxc3 {[%emt 0:00:07]} 43. Kxc3 {[%emt 0:00:03]} Kc6 {[%emt 0:00:15]} 44. a4 {[%emt 0:00:47]} a6 {[%emt 0:00:20]} 45. Kd4 {[%emt 0:00:27]} Kd7 {[%emt 0:01:02]} 46. Rh4 {[%emt 0:00:35]} Ke6 {[%emt 0:00:33]} 47. Kd3 {[%emt 0:00:00]} Kd6 {[%emt 0:00:00]} 48. Ke2 {[%emt 0:00:00]} a5 {[%emt 0:00:00]} 49. bxa5 {[%emt 0:00:00]} bxa5 {[%emt 0:00:00]} 50. Kd3 {[%emt 0:00:00]} Kc5 {[%emt 0:00:00]} 51. Kc3 {[%emt 0:00:00]} Kc6 {[%emt 0:00:00]} 52. Kd4 {[%emt 0:00:00]} Kb6 {[%emt 0:00:00]} 53. Rh1 {[%emt 0:00:00]} Kc6 {[%emt 0:00:00]} 54. Rc1+ {[%emt 0:00:00]} Kb6 {[%emt 0:00:00]} 55. Rc8 {[%emt 0:00:00]} Kb7 {[%emt 0:00:00]} 56. Rh8 {[%emt 0:00:00]} Kc7 {[%emt 0:00:00]} 57. Rh6 {[%emt 0:00:00]} f6 {[%emt 0:00:00]} 58. Kc5 {[%emt 0:00:00]} Kd7 {[%emt 0:00:00]} 59. Rh7+ {[%emt 0:00:00]} Ke6 {[%emt 0:00:00]} 60. Kd4 {[%emt 0:01:44]} Kd6 {[%emt 0:00:00]} 61. Ra7 {[%emt 0:01:07]} Kc6 {[%emt 0:00:00]} 62. Rg7 {[%emt 0:03:11]} Kd6 {[%emt 0:00:00]} 63. Rh7 {[%emt 0:02:59]} Kc6 {[%emt 0:00:00]} 64. Re7 {[%emt 0:00:14]} Kd6 {[%emt 0:00:00]} 65. Ra7 {[%emt 0:00:13]} Kc6 {[%emt 0:00:00]} 66. Rxa5 {[%emt 0:01:43]} h4 {[%emt 0:00:00]} 67. Rc5+ {[%emt 0:00:07]} Kb6 {[%emt 0:00:00]} 68. Rb5+ {[%emt 0:00:38]} Ka6 {[%emt 0:00:00]} 69. Rb2 {[%emt 0:00:21]} h3 {[%emt 0:00:00]} 70. Rh2 {[%emt 0:00:04]} Rh5 {[%emt 0:00:00]} 71. Kc5 {[%emt 0:00:05]} Ka5 {[%emt 0:00:00]} 72. Kd6 {[%emt 0:00:30]} Kxa4 {[%emt 0:00:00]} 73. Ke6 {[%emt 0:00:12]} Kb3 {[%emt 0:00:54]} 74. Kxf6 {[%emt 0:00:29]} Kc3 {[%emt 0:00:07]} 75. Kg6 {[%emt 0:00:36]} Rh4 {[%emt 0:00:12]} 76. Kg5 Rh8 {[%emt 0:00:13]} 77. Kg4 {[%emt 0:02:24]} Kd3 {[%emt 0:00:41]} 78. Rxh3 {[%emt 0:00:34]} Rh7 79. Rh4 {[%emt 0:00:35]} Rxh4+ {[%emt 0:02:21]} 1/2-1/2

[Event "WJCC U20 Girls 2019"]
[Site "New Delhi"]
[Date "2019.10.21"]
[Round "7.41"]
[White "Lohani, Sujana"]
[Black "Srimathi R"]
[Result "0-1"]
[ECO "A46"]
[WhiteElo "1671"]
[BlackElo "1914"]
[Annotator "NA RC"]
[PlyCount "52"]
[EventDate "2019.10.15"]
[EventType "swiss"]
[EventCountry "IND"]
[SourceTitle "playchess.com"]
[Source "ChessBase"]
[SourceQuality "1"]
[TimeControl "40/5400+30:1800+30"]

1. d4 {[%emt 0:00:00]} Nf6 {[%emt 0:00:00]} 2. Nf3 {[%emt 0:00:00]} e6 {[%emt 0:00:05]} 3. c4 {[%emt 0:00:06]} d5 {[%emt 0:00:06]} 4. g3 {[%emt 0:00:23]} Bb4+ {[%emt 0:00:12]} 5. Bd2 {[%emt 0:00:13]} Bd6 {[%emt 0:00:05]} 6. Bg2 {[%emt 0:00:16]} c6 {[%emt 0:00:16]} 7. O-O {[%emt 0:01:24]} O-O {[%emt 0:00:14]} 8. Qc2 {[%emt 0:01:25]} Nbd7 {[%emt 0:00:52]} 9. Re1 {[%emt 0:06:00]} Ne4 {[%emt 0:00:34]} 10. Be3 {[%emt 0:02:20]} f5 {[%emt 0:02:16]} 11. Nc3 {[%emt 0:07:53]} Qe7 {[%emt 0:04:13]} 12. Nxe4 {[%emt 0:16:40]} fxe4 {[%emt 0:07:10]} 13. Nd2 {[%emt 0:02:18]} e5 {[%emt 0:06:50]} 14. f3 {[%emt 0:05:11]} exd4 {[%emt 0:02:02]} 15. Bxd4 {[%emt 0:00:49]} c5 {[%emt 0:00:35]} 16. Be3 {[%emt 0:15:22]} d4 {[%emt 0:01:38]} 17. Bf4 {[%emt 0:01:04]} Bxf4 {[%emt 0:00:15]} 18. gxf4 {[%emt 0:00:17]} e3 {[%emt 0:01:19]} 19. Ne4 {[%emt 0:01:31]} Rxf4 {[%emt 0:01:52]} 20. Kh1 {[%emt 0:11:06]} Ne5 {[%emt 0:03:13]} 21. Ng3 {[%emt 0:04:45]} Rh4 {[%emt 0:01:38]} 22. Nf1 {[%emt 0:07:26]} Ng6 {[%emt 0:00:46]} 23. b4 {[%emt 0:10:04]} Nf4 {[%emt 0:06:28]} 24. Qe4 {[%emt 0:01:19]} Be6 {[%emt 0:00:26]} 25. Qb1 {[%emt 0:03:33]} Qg5 {[%emt 0:00:08]} 26. Ng3 {[%emt 0:00:24]} Qxg3 {[%emt 0:00:18]} 0-1

[Event "WJCC U20 Girls 2019"]
[Site "New Delhi"]
[Date "2019.10.21"]
[Round "7.42"]
[White "Noshin, Anjum"]
[Black "Rathi Dhanashree"]
[Result "1/2-1/2"]
[ECO "B43"]
[WhiteElo "1793"]
[BlackElo "1692"]
[Annotator "NA"]
[PlyCount "59"]
[EventDate "2019.10.15"]
[EventType "swiss"]
[EventCountry "IND"]
[SourceTitle "playchess.com"]
[Source "ChessBase"]
[SourceQuality "1"]
[TimeControl "40/5400+30:1800+30"]

1. e4 {[%emt 0:00:00]} c5 {[%emt 0:00:00]} 2. Nf3 {[%emt 0:00:00]} e6 {[%emt 0:00:14]} 3. d4 {[%emt 0:00:00]} cxd4 {[%emt 0:00:10]} 4. Nxd4 {[%emt 0:00:08]} a6 {[%emt 0:00:09]} 5. Nc3 {[%emt 0:01:28]} Qc7 {[%emt 0:01:09]} 6. Bd3 {[%emt 0:03:40]} Bb4 {[%emt 0:01:53]} 7. Bd2 {[%emt 0:01:16]} Nf6 {[%emt 0:00:33]} 8. Qe2 {[%emt 0:02:11]} Nc6 {[%emt 0:09:37]} 9. Nxc6 {[%emt 0:01:25]} bxc6 {[%emt 0:00:08]} 10. O-O {[%emt 0:24:22]} Bd6 {[%emt 0:05:30]} 11. h3 {[%emt 0:05:55]} e5 {[%emt 0:05:05]} 12. b3 {[%emt 0:04:12]} O-O {[%emt 0:04:50]} 13. Na4 {[%emt 0:07:07]} Bb7 {[%emt 0:04:25]} 14. Rad1 {[%emt 0:06:58]} Rfe8 {[%emt 0:08:30]} 15. Bg5 {[%emt 0:00:55]} Be7 {[%emt 0:01:29]} 16. Bc4 {[%emt 0:11:30]} d6 {[%emt 0:12:32]} 17. f4 {[%emt 0:09:26]} h6 {[%emt 0:05:36]} 18. fxe5 {[%emt 0:08:10]} hxg5 {[%emt 0:00:38]} 19. exf6 {[%emt 0:00:37]} Bxf6 {[%emt 0:00:08]} 20. Qh5 {[%emt 0:07:40]} Rxe4 {[%emt 0:07:09]} 21. Rxf6 {[%emt 0:01:11]} Rxc4 {[%emt 0:05:01]} 22. Rfxd6 {[%emt 0:00:36]} Rxc2 {[%emt 0:05:17]} 23. Qxg5 {[%emt 0:01:13]} Re8 {[%emt 0:05:03]} 24. Qf5 {[%emt 0:01:02]} Rce2 {[%emt 0:02:17]} 25. Rd7 {[%emt 0:00:20]} Qg3 {[%emt 0:03:17]} 26. Qxf7+ {[%emt 0:00:50]} Kh7 {[%emt 0:00:46]} 27. Qh5+ {[%emt 0:00:34]} Kg8 {[%emt 0:00:08]} 28. Qf7+ {[%emt 0:00:03]} Kh7 {[%emt 0:00:09]} 29. Qh5+ {[%emt 0:00:59]} Kg8 {[%emt 0:00:05]} 30. Qf7+ {[%emt 0:00:16]} 1/2-1/2

[Event "WJCC U20 Girls 2019"]
[Site "New Delhi"]
[Date "2019.10.21"]
[Round "7.43"]
[White "Shivika Rohilla"]
[Black "Du Plessis, Anika"]
[Result "1-0"]
[ECO "B30"]
[WhiteElo "1721"]
[BlackElo "1594"]
[Annotator "NA"]
[PlyCount "103"]
[EventDate "2019.10.15"]
[EventType "swiss"]
[EventCountry "IND"]
[SourceTitle "playchess.com"]
[Source "ChessBase"]
[SourceQuality "1"]
[TimeControl "40/5400+30:1800+30"]

1. e4 {[%emt 0:00:00]} c5 {[%emt 0:00:00]} 2. Nf3 {[%emt 0:00:00]} Nc6 {[%emt 0:00:00]} 3. Nc3 {[%emt 0:00:01]} d6 {[%emt 0:00:30]} 4. Bb5 {[%emt 0:02:06]} Nf6 {[%emt 0:00:47]} 5. e5 {[%emt 0:00:22]} dxe5 {[%emt 0:00:30]} 6. Nxe5 {[%emt 0:00:17]} Bd7 {[%emt 0:00:30]} 7. Nxc6 {[%emt 0:02:41]} bxc6 {[%emt 0:05:01]} 8. Ba4 {[%emt 0:02:06]} e6 {[%emt 0:00:23]} 9. d3 {[%emt 0:05:01]} Qc7 {[%emt 0:05:03]} 10. Qf3 {[%emt 0:03:08]} Bd6 {[%emt 0:03:25]} 11. Nb5 {[%emt 0:06:51]} Qb8 {[%emt 0:07:38]} 12. Nxd6+ {[%emt 0:00:32]} Qxd6 {[%emt 0:00:05]} 13. Bf4 {[%emt 0:00:50]} Qd5 {[%emt 0:03:59]} 14. Bb3 {[%emt 0:09:36]} Qxf3 {[%emt 0:03:40]} 15. gxf3 {[%emt 0:00:08]} Ke7 {[%emt 0:01:41]} 16. Be3 {[%emt 0:00:48]} Kd6 {[%emt 0:02:34]} 17. Rg1 {[%emt 0:02:52]} Rhg8 {[%emt 0:02:55]} 18. c4 {[%emt 0:01:37]} h6 {[%emt 0:02:19]} 19. O-O-O {[%emt 0:00:52]} a5 {[%emt 0:12:30]} 20. d4 {[%emt 0:00:12]} Ke7 {[%emt 0:10:01]} 21. dxc5 {[%emt 0:03:02]} a4 {[%emt 0:04:36]} 22. Bc2 {[%emt 0:00:07]} e5 {[%emt 0:00:06]} 23. Bd2 {[%emt 0:07:24]} Be6 {[%emt 0:04:03]} 24. b3 {[%emt 0:04:43]} axb3 {[%emt 0:01:23]} 25. axb3 {[%emt 0:00:32]} Nd7 {[%emt 0:03:38]} 26. f4 {[%emt 0:17:11]} Ra1+ {[%emt 0:08:06]} 27. Kb2 {[%emt 0:00:44]} Rxd1 {[%emt 0:00:08]} 28. Rxd1 {[%emt 0:01:01]} Rb8 {[%emt 0:00:28]} 29. Kc3 {[%emt 0:00:28]} e4 {[%emt 0:05:41]} 30. Be3 {[%emt 0:01:44]} f5 {[%emt 0:01:31]} 31. Rg1 {[%emt 0:01:30]} Kf7 {[%emt 0:03:58]} 32. Bd4 {[%emt 0:00:52]} Nf6 {[%emt 0:01:23]} 33. Bxf6 {[%emt 0:05:04]} Kxf6 {[%emt 0:00:05]} 34. h4 {[%emt 0:00:06]} Rd8 {[%emt 0:03:25]} 35. Rd1 {[%emt 0:00:23]} Rxd1 {[%emt 0:00:49]} 36. Bxd1 {[%emt 0:00:06]} g5 {[%emt 0:00:09]} 37. hxg5+ {[%emt 0:00:05]} hxg5 {[%emt 0:00:04]} 38. fxg5+ {[%emt 0:00:06]} Kxg5 {[%emt 0:00:04]} 39. Kd4 {[%emt 0:01:14]} Kf6 {[%emt 0:01:54]} 40. b4 {[%emt 0:00:30]} Bd7 {[%emt 0:00:38]} 41. Be2 {[%emt 0:30:52]} Bc8 {[%emt 0:34:08]} 42. Bd1 {[%emt 0:02:02]} Ke6 {[%emt 0:00:00]} 43. Ba4 {[%emt 0:00:00]} Bb7 {[%emt 0:00:00]} 44. b5 {[%emt 0:00:00]} cxb5 {[%emt 0:00:00]} 45. cxb5 {[%emt 0:00:00]} Ba8 {[%emt 0:00:00]} 46. b6 {[%emt 0:00:00]} f4 {[%emt 0:00:00]} 47. c6 {[%emt 0:00:00]} Kd6 {[%emt 0:00:00]} 48. b7 {[%emt 0:00:00]} Bxb7 {[%emt 0:00:00]} 49. cxb7 {[%emt 0:00:00]} Kc7 {[%emt 0:00:00]} 50. Kxe4 {[%emt 0:00:00]} Kxb7 {[%emt 0:00:00]} 51. Kxf4 {[%emt 0:00:00]} Kc7 {[%emt 0:00:00]} 52. Ke5 {[%emt 0:00:00]} 1-0

[Event "WJCC U20 Girls 2019"]
[Site "New Delhi"]
[Date "2019.10.21"]
[Round "7.44"]
[White "Dahampriya, H K T Dewnethmie"]
[Black "Arushi Kotwal"]
[Result "1-0"]
[ECO "C06"]
[WhiteElo "1629"]
[BlackElo "1657"]
[Annotator "NA"]
[PlyCount "69"]
[EventDate "2019.10.15"]
[EventType "swiss"]
[EventCountry "IND"]
[SourceTitle "playchess.com"]
[Source "ChessBase"]
[SourceQuality "1"]
[TimeControl "40/5400+30:1800+30"]

1. e4 {[%emt 0:00:00]} e6 {[%emt 0:00:00]} 2. d4 {[%emt 0:00:00]} d5 {[%emt 0:00:00]} 3. Nd2 {[%emt 0:00:00]} Nf6 {[%emt 0:00:00]} 4. e5 {[%emt 0:00:00]} Nfd7 {[%emt 0:00:00]} 5. Bd3 {[%emt 0:00:01]} c5 {[%emt 0:00:00]} 6. c3 {[%emt 0:00:05]} Nc6 {[%emt 0:00:04]} 7. Ne2 {[%emt 0:00:04]} cxd4 {[%emt 0:00:05]} 8. cxd4 {[%emt 0:00:06]} Qb6 {[%emt 0:00:08]} 9. Nf3 {[%emt 0:00:09]} Bb4+ {[%emt 0:00:05]} 10. Bd2 {[%emt 0:00:11]} f6 {[%emt 0:00:05]} 11. exf6 {[%emt 0:00:11]} Nxf6 {[%emt 0:00:06]} 12. O-O {[%emt 0:00:46]} O-O {[%emt 0:00:13]} 13. Re1 {[%emt 0:10:14]} Bd6 {[%emt 0:06:22]} 14. Bc3 {[%emt 0:04:19]} Bd7 {[%emt 0:10:11]} 15. Rc1 {[%emt 0:00:16]} Qc7 {[%emt 0:02:02]} 16. h3 {[%emt 0:01:11]} Nh5 {[%emt 0:23:52]} 17. Qc2 {[%emt 0:15:03]} h6 {[%emt 0:06:41]} 18. Nh4 {[%emt 0:10:11]} Bh2+ {[%emt 0:10:57]} 19. Kf1 {[%emt 0:06:23]} Ng3+ {[%emt 0:17:59]} 20. Nxg3 {[%emt 0:00:11]} Rxf2+ {[%emt 0:00:10]} 21. Kxf2 {[%emt 0:03:24]} Qxg3+ {[%emt 0:00:14]} 22. Ke2 {[%emt 0:04:25]} Qxh4 {[%emt 0:00:06]} 23. Bh7+ {[%emt 0:04:55]} Kh8 {[%emt 0:00:27]} 24. Qd3 {[%emt 0:00:35]} Qg3 {[%emt 0:14:59]} 25. Rf1 {[%emt 0:02:15]} Qxg2+ {[%emt 0:02:15]} 26. Rf2 {[%emt 0:00:22]} Qg3 {[%emt 0:00:14]} 27. Rcf1 {[%emt 0:10:02]} Qxd3+ {[%emt 0:01:29]} 28. Bxd3 {[%emt 0:00:03]} Bd6 {[%emt 0:00:09]} 29. Rf7 {[%emt 0:04:07]} Rd8 {[%emt 0:00:13]} 30. a3 {[%emt 0:02:35]} e5 {[%emt 0:02:40]} 31. dxe5 {[%emt 0:01:09]} Nxe5 {[%emt 0:00:06]} 32. Bxe5 {[%emt 0:00:29]} Re8 {[%emt 0:01:00]} 33. Kd2 {[%emt 0:00:43]} Be6 {[%emt 0:00:14]} 34. Bxd6 {[%emt 0:01:06]} Bxf7 {[%emt 0:00:03]} 35. Rxf7 {[%emt 0:00:41]} 1-0